fUST/lending_fUST_20250617
["ID","MTS","AMOUNT","RATE_DAILY","PERIOD"]
[366280620,1750171833483,-2813.84,0.00024108,2]
[366280621,1750171833493,-2813.84,0.00024108,2]
[366280622,1750171833503,-2813.84,0.00024108,2]
[366280623,1750171833512,-2813.84,0.00024108,2]
[366280624,1750171833522,-2813.84,0.00024108,2]
[366280625,1750171833532,-586.51306352,0.00024109,6]
[366280626,1750171833542,-460.0,0.00024109,6]
[366280627,1750171833552,-460.0,0.00024109,6]
[366280628,1750171833562,-460.0,0.00024109,6]
[366280629,1750171833572,-460.0,0.00024109,6]
[366280630,1750171833582,-460.0,0.00024109,6]
[366280631,1750171833592,-460.0,0.00024109,6]
[366280632,1750171833602,-460.0,0.00024109,6]
[366280633,1750171833612,-433.09996263,0.00024109,6]
[366280634,1750171833622,-511.08677894,0.00024109,6]
[366280635,1750171833631,-460.0,0.00024109,6]
[366280636,1750171833640,-460.0,0.00024109,6]
[366280637,1750171833650,-326.78767519,0.00024109,6]
[366280638,1750171833660,-460.0,0.00024109,6]
[366280639,1750171833670,-460.0,0.00024109,6]
[366280640,1750171833680,-460.0,0.00024109,6]
[366280641,1750171833690,-460.0,0.00024109,6]
[366280642,1750171833700,-460.0,0.00024109,6]
[366280643,1750171833710,-460.0,0.00024109,6]
[366280644,1750171833720,-460.0,0.00024109,6]
[366280645,1750171833731,-460.0,0.00024109,6]
[366280646,1750171833741,-460.0,0.00024109,6]
[366280647,1750171833751,-598.24723939,0.00024109,6]
[366280648,1750171833761,-460.0,0.00024109,6]
[366280649,1750171833771,-400.85672942,0.00024109,6]
[366280650,1750171833784,-460.0,0.00024109,6]
[366280651,1750171833794,-440.0,0.00024109,6]
[366280652,1750171833804,-460.0,0.00024109,6]
[366280653,1750171833814,-460.0,0.00024109,6]
[366280654,1750171833825,-314.84613523,0.00024109,6]
[366280655,1750171833835,-460.0,0.00024109,6]
[366280656,1750171833846,-460.0,0.00024109,6]
[366280657,1750171833856,-441.56212665,0.00024109,6]
[366280658,1750171833866,-460.0,0.00024109,5]
[366280659,1750171833877,-460.89408951,0.00024109,6]
[366280660,1750171833887,-460.0,0.00024109,6]
[366280661,1750171833897,-440.0,0.00024109,6]
[366280662,1750171833908,-300.0,0.00024109,6]
[366280663,1750171833918,-460.0,0.00024109,6]
[366280664,1750171833929,-402.41814148,0.00024109,6]
[366280665,1750171833939,-402.19656822,0.00024109,6]
[366280666,1750171833949,-460.0,0.00024109,6]
[366280667,1750171833959,-460.0,0.00024109,6]
[366280668,1750171833969,-460.0,0.00024109,6]
[366280669,1750171833979,-460.0,0.00024109,6]
[366280670,1750171833990,-460.0,0.00024109,6]
[366280671,1750171834001,-460.0,0.00024109,6]
[366280672,1750171834011,-460.54933945,0.00024109,6]
[366280673,1750171834021,-323.59377873,0.00024109,6]
[366280674,1750171834030,-264.49710687,0.00024109,6]
[366280675,1750171834041,-430.0,0.00024109,6]
[366280676,1750171834050,-460.0,0.00024109,6]
[366280677,1750171834061,-460.0,0.00024109,6]
[366280678,1750171834072,-460.0,0.00024109,6]
[366280679,1750171834082,-460.0,0.00024109,6]
[366280680,1750171834092,-197.48797932,0.00024109,6]
[366280681,1750171834102,-460.0,0.00024109,6]
[366280682,1750171834112,-403.1287032,0.00024109,6]
[366280683,1750171834122,-460.0,0.00024109,6]
[366280684,1750171834133,-460.0,0.00024109,6]
[366280685,1750171834143,-171.38245522,0.00024109,6]
[366280686,1750171834154,-440.0,0.00024109,6]
[366280687,1750171834168,-372.57185556,0.00024109,6]
[366280688,1750171834178,-383.5806818,0.00024109,6]
[366280689,1750171834188,-460.0,0.00024109,6]
[366280690,1750171834199,-431.37283145,0.00024109,6]
[366280691,1750171834210,-460.0,0.00024109,6]
[366280692,1750171834220,-436.52204425,0.00024109,6]
[366280693,1750171834230,-440.0,0.00024109,6]
[366280694,1750171834240,-430.0,0.00024109,6]
[366280695,1750171834250,-460.0,0.00024109,6]
[366280696,1750171834260,-460.0,0.00024109,6]
[366280697,1750171834269,-460.0,0.00024109,6]
[366280698,1750171834279,-460.0,0.00024109,6]
[366280699,1750171834289,-431.26040394,0.00024109,6]
[366280700,1750171834298,-460.0,0.00024109,6]
[366280701,1750171834308,-460.0,0.00024109,6]
[366280702,1750171834318,-430.0,0.00024109,6]
[366280703,1750171834327,-460.0,0.00024109,6]
[366280704,1750171834338,-460.0,0.00024109,6]
[366280705,1750171834348,-402.40894302,0.00024109,6]
[366280706,1750171834358,-440.0,0.00024109,6]
[366280707,1750171834369,-460.0,0.00024109,6]
[366280708,1750171834380,-460.0,0.00024109,6]
[366280709,1750171834390,-430.0,0.00024109,6]
[366280710,1750171834400,-460.0,0.00024109,6]
[366280711,1750171834410,-440.0,0.00024109,6]
[366280712,1750171834420,-460.0,0.00024109,6]
[366280713,1750171834430,-152.52649371,0.00024109,6]
[366280714,1750171834439,-431.19462486,0.00024109,6]
[366280715,1750171834449,-460.0,0.00024109,6]
[366280716,1750171834458,-460.0,0.00024109,6]
[366280717,1750171834468,-460.0,0.00024109,6]
[366280718,1750171834478,-460.0,0.00024109,6]
[366280719,1750171834488,-480.99122599,0.00024109,6]
[366280720,1750171834498,-154.5448528,0.00024109,6]
[366280721,1750171834508,-448.03836172,0.00024109,6]
[366280722,1750171834518,-460.0,0.00024109,6]
[366280723,1750171834528,-460.0,0.00024109,6]
[366280724,1750171834537,-460.0,0.00024109,6]
[366280725,1750171834549,-460.0,0.00024109,6]
[366280726,1750171834558,-460.0,0.00024109,6]
[366280727,1750171834569,-440.0,0.00024109,6]
[366280728,1750171834579,-216.25348547,0.00024109,6]
[366280729,1750171834589,-460.0,0.00024109,6]
[366280730,1750171834600,-440.0,0.00024109,6]
[366280731,1750171834610,-393.07095062,0.00024109,6]
[366280732,1750171834619,-518.72,0.00024109,6]
[366280733,1750171834629,-460.0,0.00024109,6]
[366280734,1750171834638,-460.0,0.00024109,6]
[366280735,1750171834649,-404.28530864,0.00024109,6]
[366280736,1750171834659,-460.0,0.00024109,6]
[366280737,1750171834668,-460.0,0.00024109,6]
[366280738,1750171834678,-460.0,0.00024109,6]
[366280739,1750171834688,-334.51930767,0.00024109,6]
[366280740,1750171834698,-460.0,0.00024109,6]
[366280741,1750171834707,-420.0,0.00024109,6]
[366280742,1750171834717,-433.79365789,0.00024109,6]
[366280743,1750171834727,-430.0,0.00024109,6]
[366280744,1750171834737,-460.0,0.00024109,6]
[366280745,1750171834746,-430.0,0.00024109,6]
[366280746,1750171834757,-460.0,0.00024109,6]
[366280747,1750171834766,-431.58079541,0.00024109,6]
[366280748,1750171834776,-396.36150275,0.00024109,6]
[366280749,1750171834786,-386.82370798,0.00024109,6]
[366280750,1750171834796,-440.0,0.00024109,6]
[366280751,1750171834806,-403.08911074,0.00024109,6]
[366280752,1750171834816,-460.0,0.00024109,6]
[366280753,1750171834827,-460.0,0.00024109,6]
[366280754,1750171834837,-460.0,0.00024109,6]
[366280755,1750171834847,-460.0,0.00024109,6]
[366280756,1750171834857,-460.0,0.00024109,6]
[366280757,1750171834867,-460.0,0.00024109,6]
[366280758,1750171834876,-460.0,0.00024109,6]
[366280759,1750171834886,-1199.35,0.00024109,2]
[366280760,1750171834896,-431.11713761,0.00024109,6]
[366280761,1750171834905,-460.0,0.00024109,6]
[366280762,1750171834914,-460.0,0.00024109,6]
[366280763,1750171834924,-430.0,0.00024109,6]
[366280764,1750171834933,-420.5052941,0.00024109,6]
[366280765,1750171834943,-460.0,0.00024109,6]
[366280766,1750171834952,-436.45938286,0.00024109,6]
[366280767,1750171834962,-460.0,0.00024109,6]
[366280768,1750171834972,-460.0,0.00024109,6]
[366280769,1750171834983,-558.42617413,0.00024109,6]
[366280770,1750171834994,-460.0,0.00024109,6]
[366280771,1750171835089,-460.0,0.00024109,6]
[366280772,1750171835111,-460.0,0.00024109,6]
[366280773,1750171835122,-460.0,0.00024109,6]
[366280774,1750171835132,-490.0,0.00024109,6]
[366280775,1750171835142,-460.0,0.00024109,6]
[366280776,1750171835151,-460.0,0.00024109,6]
[366280777,1750171835165,-430.0,0.00024109,6]
[366280778,1750171835174,-460.0,0.00024109,6]
[366280779,1750171835184,-460.0,0.00024109,6]
[366280780,1750171835194,-460.0,0.00024109,6]
[366280781,1750171835204,-460.0,0.00024109,6]
[366280782,1750171835214,-429.93163251,0.00024109,6]
[366280783,1750171835223,-503.78,0.00024109,6]
[366280784,1750171835234,-460.0,0.00024109,6]
[366280785,1750171835243,-400.0,0.00024109,6]
[366280786,1750171835253,-460.0,0.00024109,6]
[366280787,1750171835262,-460.0,0.00024109,6]
[366280788,1750171835272,-151.33653961,0.00024109,6]
[366280789,1750171835282,-460.0,0.00024109,6]
[366280790,1750171835291,-460.0,0.00024109,6]
[366280791,1750171835301,-460.0,0.00024109,6]
[366280792,1750171835310,-460.0,0.00024109,6]
[366280793,1750171835321,-460.0,0.00024109,6]
[366280794,1750171835330,-460.0,0.00024109,6]
[366280795,1750171835339,-460.0,0.00024109,6]
[366280796,1750171835348,-460.0,0.00024109,6]
[366280797,1750171835358,-279.851434,0.00024109,6]
[366280798,1750171835368,-460.0,0.00024109,6]
[366280799,1750171835377,-460.0,0.00024109,6]
[366280800,1750171835388,-500.0,0.00024109,6]
[366280801,1750171835398,-460.0,0.00024109,6]
[366280802,1750171835408,-1380.68,0.00024109,6]
[366280803,1750171835417,-460.0,0.00024109,6]
[366280804,1750171835427,-289.74675526,0.00024109,6]
[366280805,1750171835437,-434.002741,0.00024109,6]
[366280806,1750171835447,-631.87,0.00024109,6]
[366280807,1750171835457,-440.0,0.00024109,6]
[366280808,1750171835466,-415.40703595,0.00024109,6]
[366280809,1750171835476,-460.0,0.00024109,6]
[366280810,1750171835485,-460.0,0.00024109,6]
[366280811,1750171835494,-460.0,0.00024109,6]
[366280812,1750171835503,-420.0,0.00024109,6]
[366280813,1750171835513,-444.21661399,0.00024109,6]
[366280814,1750171835522,-460.0,0.00024109,6]
[366280815,1750171835531,-527.4,0.00024109,6]
[366280816,1750171835541,-460.0,0.00024109,6]
[366280817,1750171835550,-460.0,0.00024109,6]
[366280818,1750171835559,-460.0,0.00024109,6]
[366280819,1750171835569,-460.0,0.00024109,6]
[366280820,1750171835578,-460.0,0.00024109,6]
[366280821,1750171835588,-460.0,0.00024109,6]
[366280822,1750171835597,-605.93618998,0.00024109,6]
[366280823,1750171835607,-460.0,0.00024109,6]
[366280824,1750171835617,-390.0,0.00024109,6]
[366280825,1750171835626,-460.0,0.00024109,6]
[366280826,1750171835635,-497.93,0.00024109,6]
[366280827,1750171835644,-460.0,0.00024109,6]
[366280828,1750171835654,-460.0,0.00024109,6]
[366280829,1750171835664,-460.0,0.00024109,6]
[366280830,1750171835673,-897.13,0.00024109,6]
[366280831,1750171835683,-460.0,0.00024109,6]
[366280832,1750171835693,-440.0,0.00024109,6]
[366280833,1750171835703,-560.97,0.00024109,6]
[366280834,1750171835713,-375.57534261,0.00024109,6]
[366280835,1750171835723,-460.0,0.00024109,6]
[366280836,1750171835732,-465.36,0.00024109,6]
[366280837,1750171835742,-460.0,0.00024109,6]
[366280838,1750171835752,-460.0,0.00024109,6]
[366280839,1750171835762,-460.0,0.00024109,6]
[366280840,1750171835771,-460.0,0.00024109,6]
[366280841,1750171835781,-460.0,0.00024109,6]
[366280842,1750171835790,-421.38873459,0.00024109,6]
[366280843,1750171835799,-460.0,0.00024109,6]
[366280844,1750171835809,-460.0,0.00024109,6]
[366280845,1750171835818,-440.0,0.00024109,6]
[366280846,1750171835828,-460.0,0.00024109,6]
[366280847,1750171835837,-460.0,0.00024109,6]
[366280848,1750171835847,-460.0,0.00024109,6]
[366280849,1750171835857,-460.0,0.00024109,6]
[366280850,1750171835867,-467.0783,0.00024109,6]
[366280851,1750171835878,-460.0,0.00024109,6]
[366280852,1750171835887,-460.0,0.00024109,6]
[366280853,1750171835897,-443.46620302,0.00024109,6]
[366280854,1750171835906,-460.0,0.00024109,6]
[366280855,1750171835916,-460.0,0.00024109,6]
[366280856,1750171835926,-460.0,0.00024109,6]
[366280857,1750171835936,-410.0,0.00024109,6]
[366280858,1750171835946,-441.05521309,0.00024109,6]
[366280859,1750171835955,-403.60064543,0.00024109,6]
[366280860,1750171835965,-430.0,0.00024109,6]
[366280861,1750171835974,-460.0,0.00024109,6]
[366280862,1750171835984,-460.0,0.00024109,6]
[366280863,1750171835994,-460.0,0.00024109,6]
[366280864,1750171836004,-460.0,0.00024109,6]
[366280865,1750171836014,-460.0,0.00024109,6]
[366280866,1750171836025,-460.0,0.00024109,6]
[366280867,1750171836036,-460.0,0.00024109,6]
[366280868,1750171836046,-460.0,0.00024109,6]
[366280869,1750171836058,-914.53,0.00024109,6]
[366280870,1750171836069,-440.0,0.00024109,6]
[366280871,1750171836079,-460.0,0.00024109,6]
[366280872,1750171836090,-460.0,0.00024109,6]
[366280873,1750171836099,-460.0,0.00024109,6]
[366280874,1750171836109,-500.0,0.00024109,6]
[366280875,1750171836119,-460.0,0.00024109,6]
[366280876,1750171836128,-460.0,0.00024109,6]
[366280877,1750171836138,-460.0,0.00024109,6]
[366280878,1750171836147,-460.0,0.00024109,6]
[366280879,1750171836161,-460.0,0.00024109,6]
[366280880,1750171836170,-440.0,0.00024109,6]
[366280881,1750171836179,-460.0,0.00024109,6]
[366280882,1750171836190,-381.99,0.00024109,6]
[366280883,1750171836201,-430.0,0.00024109,6]
[366280884,1750171836211,-460.0,0.00024109,6]
[366280885,1750171836220,-420.0,0.00024109,6]
[366280886,1750171836231,-534.99,0.00024109,6]
[366280887,1750171836243,-413.79721582,0.00024109,6]
[366280888,1750171836252,-506.82533047,0.00024109,6]
[366280889,1750171836262,-430.0,0.00024109,6]
[366280890,1750171836272,-460.0,0.00024109,6]
[366280891,1750171836282,-460.0,0.00024109,6]
[366280892,1750171836292,-523.77233332,0.00024109,6]
[366280893,1750171836301,-460.0,0.00024109,6]
[366280894,1750171836311,-440.0,0.00024109,6]
[366280895,1750171836321,-460.0,0.00024109,6]
[366280896,1750171836331,-460.0,0.00024109,6]
[366280897,1750171836340,-500.0,0.00024109,6]
[366280898,1750171836350,-500.0,0.00024109,6]
[366280899,1750171836360,-500.0,0.00024109,6]
[366280900,1750171836370,-500.0,0.00024109,6]
[366280901,1750171836380,-394.42236886,0.00024109,6]
[366280902,1750171836391,-430.0,0.00024109,6]
[366280903,1750171836401,-500.0,0.00024109,6]
[366280904,1750171836411,-500.0,0.00024109,6]
[366280905,1750171836421,-500.0,0.00024109,6]
[366280906,1750171836431,-500.0,0.00024109,6]
[366280907,1750171836441,-500.0,0.00024109,6]
[366280908,1750171836451,-500.0,0.00024109,6]
[366280909,1750171836460,-500.0,0.00024109,6]
[366280910,1750171836470,-500.0,0.00024109,6]
[366280911,1750171836480,-404.33718176,0.00024109,6]
[366280912,1750171836490,-646.11548031,0.00024109,6]
[366280913,1750171836500,-460.0,0.00024109,6]
[366280914,1750171836511,-460.0,0.00024109,6]
[366280915,1750171836521,-460.0,0.00024109,6]
[366280916,1750171836531,-463.97410003,0.00024109,6]
[366280917,1750171836634,-434.82004224,0.00024109,6]
[366280918,1750171836644,-404.49380786,0.00024109,6]
[366280919,1750171836654,-460.0,0.00024109,6]
[366280920,1750171836663,-400.0,0.00024109,6]
[366280921,1750171836673,-514.39836032,0.00024109,6]
[366280922,1750171836682,-460.0,0.00024109,6]
[366280923,1750171836692,-460.0,0.00024109,6]
[366280924,1750171836702,-460.0,0.00024109,6]
[366280925,1750171836711,-460.0,0.00024109,6]
[366280926,1750171836720,-460.0,0.00024109,6]
[366280927,1750171836730,-460.0,0.00024109,6]
[366280928,1750171836739,-460.0,0.00024109,6]
[366280929,1750171836749,-440.0,0.00024109,6]
[366280930,1750171836759,-196.03780443,0.00024109,6]
[366280931,1750171836769,-460.0,0.00024109,6]
[366280932,1750171836779,-460.0,0.00024109,6]
[366280933,1750171836788,-460.0,0.00024109,6]
[366280934,1750171836798,-460.0,0.00024109,6]
[366280935,1750171836807,-460.0,0.00024109,6]
[366280936,1750171836817,-410.0,0.00024109,6]
[366280937,1750171836828,-432.41946733,0.00024109,6]
[366280938,1750171836838,-501.28,0.00024109,6]
[366280939,1750171836847,-460.0,0.00024109,6]
[366280940,1750171836856,-431.27543301,0.00024109,6]
[366280941,1750171836866,-460.0,0.00024109,6]
[366280942,1750171836875,-440.0,0.00024109,6]
[366280943,1750171836885,-460.0,0.00024109,6]
[366280944,1750171836895,-460.0,0.00024109,6]
[366280945,1750171836905,-460.0,0.00024109,6]
[366280946,1750171836914,-170.35409438,0.00024109,6]
[366280947,1750171836924,-460.0,0.00024109,6]
[366280948,1750171836934,-430.0,0.00024109,6]
[366280949,1750171836944,-460.0,0.00024109,6]
[366280950,1750171836953,-460.0,0.00024109,6]
[366280951,1750171836963,-460.0,0.00024109,6]
[366280952,1750171836973,-460.0,0.00024109,6]
[366280953,1750171836982,-432.61967651,0.00024109,6]
[366280954,1750171836992,-460.0,0.00024109,6]
[366280955,1750171837001,-460.0,0.00024109,6]
[366280956,1750171837011,-460.0,0.00024109,6]
[366280957,1750171837021,-402.24185641,0.00024109,6]
[366280958,1750171837030,-435.41145211,0.00024109,6]
[366280959,1750171837040,-163.76318109,0.00024109,6]
[366280960,1750171837050,-1910.97,0.00024109,2]
[366280961,1750171837060,-460.0,0.00024109,6]
[366280962,1750171837069,-574.85,0.00024109,6]
[366280963,1750171837079,-460.0,0.00024109,6]
[366280964,1750171837089,-460.0,0.00024109,6]
[366280965,1750171837099,-460.0,0.00024109,6]
[366280966,1750171837109,-1174.19,0.00024109,6]
[366280967,1750171837119,-460.0,0.00024109,6]
[366280968,1750171837128,-460.0,0.00024109,6]
[366280969,1750171837137,-3690.08,0.00024109,6]
[366280970,1750171837147,-460.0,0.00024109,6]
[366280971,1750171837158,-194.57270511,0.00024109,6]
[366280972,1750171837168,-460.0,0.00024109,6]
[366280973,1750171837179,-460.0,0.00024109,6]
[366280974,1750171837188,-460.0,0.00024109,6]
[366280975,1750171837198,-542.01732202,0.00024109,6]
[366280976,1750171837208,-460.0,0.00024109,6]
[366280977,1750171837217,-460.0,0.00024109,6]
[366280978,1750171837227,-460.0,0.00024109,6]
[366280979,1750171837239,-471.55314848,0.00024109,6]
[366280980,1750171837250,-435.26812203,0.00024109,6]
[366280981,1750171837260,-460.0,0.00024109,6]
[366280982,1750171837271,-386.85746452,0.00024109,6]
[366280983,1750171837281,-460.0,0.00024109,6]
[366280984,1750171837291,-460.0,0.00024109,6]
[366280985,1750171837300,-460.0,0.00024109,6]
[366280986,1750171837310,-262.01995318,0.00024109,6]
[366280987,1750171837319,-460.0,0.00024109,6]
[366280988,1750171837330,-440.0,0.00024109,6]
[366280989,1750171837340,-977.71,0.00024109,6]
[366280990,1750171837349,-523.03,0.00024109,6]
[366280991,1750171837359,-433.63106898,0.00024109,6]
[366280992,1750171837368,-868.6,0.00024109,6]
[366280993,1750171837380,-836.38078461,0.00024109,6]
[366280994,1750171837398,-460.0,0.00024109,6]
[366280995,1750171837408,-460.0,0.00024109,6]
[366280996,1750171837417,-460.0,0.00024109,6]
[366280997,1750171837427,-460.0,0.00024109,6]
[366280998,1750171837436,-362.0723754,0.00024109,6]
[366280999,1750171837446,-460.0,0.00024109,6]
[366281000,1750171837455,-254.85964708,0.00024109,6]
[366281001,1750171837465,-440.0,0.00024109,6]
[366281002,1750171837475,-1316.09,0.00024109,6]
[366281004,1750171837484,-462.19905113,0.00024109,6]
[366281006,1750171837493,-460.0,0.00024109,6]
[366281008,1750171837503,-460.0,0.00024109,6]
[366281010,1750171837513,-2276.91,0.00024109,6]
[366281012,1750171837522,-460.0,0.00024109,6]
[366281013,1750171837532,-460.0,0.00024109,6]
[366281014,1750171837541,-430.0,0.00024109,6]
[366281015,1750171837551,-943.67,0.00024109,6]
[366281016,1750171837561,-460.0,0.00024109,6]
[366281017,1750171837571,-439.86840454,0.00024109,6]
[366281018,1750171837580,-453.21201325,0.00024109,6]
[366281019,1750171837590,-460.0,0.00024109,2]
[366281021,1750171837599,-440.0,0.00024109,6]
[366281023,1750171837609,-461.87549413,0.00024109,6]
[366281024,1750171837619,-1169.74,0.00024109,6]
[366281025,1750171837628,-307.68211599,0.00024109,6]
[366281026,1750171837637,-460.0,0.00024109,6]
[366281028,1750171837647,-1589.79,0.00024109,6]
[366281029,1750171837657,-384.22612609,0.00024109,6]
[366281030,1750171837666,-460.0,0.00024109,6]
[366281031,1750171837675,-460.0,0.00024109,6]
[366281032,1750171837685,-460.0,0.00024109,6]
[366281033,1750171837694,-420.0,0.00024109,6]
[366281034,1750171837704,-460.0,0.00024109,6]
[366281035,1750171837713,-400.0,0.00024109,6]
[366281036,1750171837723,-500.0,0.00024109,6]
[366281037,1750171837732,-898.26,0.00024109,6]
[366281038,1750171837742,-430.0,0.00024109,6]
[366281039,1750171837751,-460.0,0.00024109,6]
[366281040,1750171837761,-440.0,0.00024109,6]
[366281041,1750171837771,-2669.68,0.00024109,6]
[366281042,1750171837780,-780.03,0.00024109,6]
[366281043,1750171837790,-477.87103271,0.00024109,6]
[366281044,1750171837800,-460.0,0.00024109,6]
[366281045,1750171837809,-460.0,0.00024109,6]
[366281046,1750171837819,-440.0,0.00024109,6]
[366281047,1750171837829,-537.63,0.00024109,6]
[366281048,1750171837838,-460.0,0.00024109,6]
[366281049,1750171837848,-460.0,0.00024109,6]
[366281050,1750171837857,-460.0,0.00024109,6]
[366281051,1750171837866,-460.0,0.00024109,6]
[366281052,1750171837876,-430.44489058,0.00024109,6]
[366281054,1750171837888,-460.0,0.00024109,6]
[366281056,1750171837897,-460.0,0.00024109,6]
[366281058,1750171837908,-430.0,0.00024109,6]
[366281060,1750171837918,-430.0,0.00024109,6]
[366281062,1750171837928,-1369.13,0.00024109,6]
[366281072,1750171837938,-460.0,0.00024109,6]
[366281075,1750171838041,-605.17,0.00024109,6]
[366281077,1750171838051,-605.17,0.00024109,6]
[366281079,1750171838061,-1183.99,0.00024109,6]
[366281081,1750171838072,-605.17,0.00024109,6]
[366281083,1750171838081,-605.17,0.00024109,6]
[366281085,1750171838091,-3852.02,0.00024109,6]
[366281087,1750171838101,-605.17,0.00024109,6]
[366281089,1750171838111,-605.17,0.00024109,6]
[366281090,1750171838120,-605.17,0.00024109,6]
[366281091,1750171838130,-605.17,0.00024109,6]
[366281092,1750171838140,-460.0,0.00024109,6]
[366281093,1750171838150,-605.17,0.00024109,6]
[366281094,1750171838164,-605.17,0.00024109,6]
[366281095,1750171838174,-605.17,0.00024109,6]
[366281096,1750171838184,-605.17,0.00024109,6]
[366281097,1750171838194,-460.0,0.00024109,6]
[366281098,1750171838204,-605.17,0.00024109,6]
[366281099,1750171838214,-460.0,0.00024109,6]
[366281100,1750171838223,-605.17,0.00024109,6]
[366281101,1750171838233,-412.16346459,0.00024109,6]
[366281103,1750171838243,-460.0,0.00024109,6]
[366281105,1750171838253,-605.17,0.00024109,6]
[366281106,1750171838264,-605.17,0.00024109,6]
[366281107,1750171838274,-605.17,0.00024109,6]
[366281108,1750171838284,-7884.57,0.00024109,6]
[366281109,1750171838294,-460.0,0.00024109,6]
[366281110,1750171838303,-433.56842149,0.00024109,6]
[366281111,1750171838313,-930.83,0.00024109,6]
[366281112,1750171838323,-460.0,0.00024109,6]
[366281113,1750171838332,-460.0,0.00024109,6]
[366281114,1750171838342,-460.0,0.00024109,6]
[366281115,1750171838352,-351.53042223,0.00024109,6]
[366281116,1750171838361,-460.0,0.00024109,6]
[366281117,1750171838371,-460.0,0.00024109,6]
[366281118,1750171838381,-460.0,0.00024109,6]
[366281119,1750171838391,-460.0,0.00024109,6]
[366281120,1750171838401,-460.0,0.00024109,6]
[366281121,1750171838411,-1413.01,0.00024109,6]
[366281122,1750171838420,-5273.74,0.00024109,6]
[366281123,1750171838431,-402.13392965,0.00024109,6]
[366281124,1750171838441,-2262.37,0.00024109,6]
[366281125,1750171838451,-599.3,0.00024109,6]
[366281126,1750171838461,-8112.64,0.00024109,6]
[366281127,1750171838471,-460.0,0.00024109,6]
[366281128,1750171838481,-726.69,0.00024109,6]
[366281129,1750171838491,-460.0,0.00024109,6]
[366281130,1750171838501,-400.0,0.00024109,6]
[366281131,1750171838510,-440.0,0.00024109,6]
[366281132,1750171838520,-7017.61,0.00024109,6]
[366281134,1750171838530,-460.0,0.00024109,6]
[366281136,1750171838539,-460.0,0.00024109,6]
[366281137,1750171838549,-1314.27,0.00024109,6]
[366281139,1750171838559,-460.0,0.00024109,6]
[366281141,1750171838569,-854.05,0.00024109,6]
[366281143,1750171838580,-460.0,0.00024109,6]
[366281145,1750171838589,-460.0,0.00024109,6]
[366281146,1750171838599,-460.0,0.00024109,6]
[366281148,1750171838609,-460.0,0.00024109,6]
[366281150,1750171838618,-460.0,0.00024109,6]
[366281152,1750171838627,-460.0,0.00024109,6]
[366281154,1750171838637,-460.0,0.00024109,6]
[366281155,1750171838646,-1052.38,0.00024109,6]
[366281157,1750171838656,-2063.9,0.00024109,6]
[366281159,1750171838666,-8799.69,0.00024109,6]
[366281161,1750171838675,-460.0,0.00024109,6]
[366281163,1750171838685,-460.0,0.00024109,6]
[366281164,1750171838694,-556.8,0.00024109,6]
[366281166,1750171838704,-460.0,0.00024109,6]
[366281168,1750171838714,-460.0,0.00024109,6]